fUST/lending_fUST_20240122
["ID","MTS","AMOUNT","RATE_DAILY","PERIOD"]
[312471833,1705913837250,-500.0,0.00041917,31]
[312471834,1705913837275,-1047.38,0.00041917,31]
[312471835,1705913837299,-500.0,0.00041917,31]
[312471836,1705913837324,-500.0,0.00041917,31]
[312471837,1705913837349,-500.0,0.00041917,31]
[312471838,1705913837374,-564.89,0.00041917,31]
[312471839,1705913837399,-1337.29,0.00041917,31]
[312471840,1705913837423,-500.0,0.00041917,31]
[312471841,1705913837451,-1126.09,0.00041917,31]
[312471842,1705913837475,-157.32169689,0.00041917,31]
[312471843,1705913837500,-500.0,0.00041917,31]
[312471844,1705913837525,-1014.23,0.00041917,31]
[312471845,1705913837549,-500.0,0.00041917,31]
[312471846,1705913837574,-2330.07,0.00041917,31]
[312471847,1705913837598,-500.0,0.00041917,31]
[312471848,1705913837623,-6634.5,0.00041917,31]
[312471849,1705913837647,-949.36,0.00041917,31]
[312471850,1705913837673,-500.0,0.00041917,31]
[312471851,1705913837697,-1340.33,0.00041917,31]
[312471852,1705913837722,-2749.12,0.00041917,31]
[312471853,1705913837746,-6849.76,0.00041917,31]
[312471854,1705913837774,-1551.82,0.00041917,31]
[312471855,1705913837799,-306.13117733,0.00041917,31]
[312471856,1705913837826,-5781.2,0.00041917,31]
[312471857,1705913837851,-2019.03,0.00041917,31]
[312471858,1705913837877,-6915.52,0.00041917,31]
[312471859,1705913837902,-2081.27,0.00041917,31]
[312471860,1705913837927,-539.18,0.00041917,31]
[312471861,1705913837953,-1825.15,0.00041917,31]
[312471862,1705913837978,-741.59,0.00041917,31]
[312471863,1705913838003,-450.31793252,0.00041917,31]
[312471864,1705913838030,-1295.04,0.00041917,31]
[312471865,1705913838055,-1269.8,0.00041917,31]
[312471866,1705913838080,-500.0,0.00041917,31]
[312471867,1705913838105,-1732.72,0.00041917,31]
[312471868,1705913838130,-1393.86,0.00041917,31]
[312471869,1705913838155,-1409.98,0.00041917,31]
[312471870,1705913838179,-571.3,0.00041917,31]
[312471871,1705913838205,-500.0,0.00041917,31]
[312471872,1705913838229,-567.11,0.00041917,31]
[312471873,1705913838255,-638.47,0.00041917,31]
[312471874,1705913838281,-2018.02,0.00041917,31]
[312471875,1705913838306,-2040.77,0.00041917,31]
[312471876,1705913838331,-500.0,0.00041917,31]
[312471877,1705913838356,-4772.99,0.00041917,31]
[312471878,1705913838381,-1774.13,0.00041917,31]
[312471879,1705913838406,-14310.79,0.00041917,31]
[312471880,1705913838432,-604.97,0.00041917,31]
[312471881,1705913838457,-7562.9669074,0.00042,120]
[312471882,1705913838481,-1000.0,0.00042,120]
[312471883,1705913838506,-1000.0,0.00042,42]
[312471884,1705913838532,-151.36107663,0.00042068,30]
[312471885,1705913838556,-406.11514423,0.00042095,30]
[312471886,1705913838580,-500.0,0.00042095,30]
[312471887,1705913838605,-500.0,0.00042095,30]
[312471888,1705913838723,-524.0981848,0.00042095,30]
[312471889,1705913838755,-500.0,0.00042095,30]
[312471890,1705913838782,-286.73502257,0.00042095,30]
[312471891,1705913838807,-234.67542026,0.00042095,30]
[312471892,1705913838833,-500.0,0.00042095,30]
[312471893,1705913838858,-500.0,0.00042095,30]
[312471894,1705913838884,-500.0,0.00042095,30]
[312471895,1705913838909,-500.0,0.00042095,30]
[312471896,1705913838935,-500.0,0.00042095,30]
[312471897,1705913838962,-500.0,0.00042095,30]
[312471898,1705913838988,-500.0,0.00042095,30]
[312471899,1705913839016,-474.05930474,0.00042095,30]
[312471900,1705913839041,-500.0,0.00042095,30]
[312471901,1705913839067,-500.0,0.00042095,30]
[312471902,1705913839093,-484.18070568,0.00042095,30]
[312471903,1705913839118,-517.72387018,0.00042095,30]
[312471904,1705913839143,-570.32014025,0.00042095,30]
[312471905,1705913839167,-157.27191798,0.00042095,30]
[312471906,1705913839193,-500.0,0.00042095,30]
[312471907,1705913839219,-500.0,0.00042095,30]
[312471908,1705913839245,-500.0,0.00042095,30]
[312471909,1705913839270,-500.0,0.00042095,30]
[312471910,1705913839295,-500.0,0.00042191,31]
[312471911,1705913839320,-500.0,0.00042191,31]
[312471912,1705913839344,-1114.81,0.00042191,31]
[312471913,1705913839369,-500.0,0.00042191,31]
[312471914,1705913839392,-768.35,0.00042191,31]
[312471915,1705913839417,-873.08,0.00042191,31]
[312471916,1705913839441,-640.07,0.00042191,31]
[312471917,1705913839466,-529.18,0.00042191,31]
[312471918,1705913839491,-500.0,0.00042191,31]
[312471919,1705913839517,-1047.38,0.00042191,31]
[312471920,1705913839542,-500.0,0.00042191,31]
[312471921,1705913839567,-500.0,0.00042191,31]
[312471922,1705913839592,-500.0,0.00042191,31]
[312471923,1705913839617,-564.89,0.00042191,31]
[312471924,1705913839642,-1337.29,0.00042191,31]
[312471925,1705913839666,-549.02626748,0.00042191,31]
[312471926,1705913839690,-1126.09,0.00042191,31]
[312471927,1705913839714,-500.0,0.00042191,31]
[312471928,1705913839742,-1014.23,0.00042191,31]
[312471929,1705913839766,-500.0,0.00042191,31]
[312471930,1705913839790,-2330.07,0.00042191,31]
[312471931,1705913839815,-500.0,0.00042191,31]
[312471932,1705913839840,-6634.5,0.00042191,31]
[312471933,1705913839864,-949.36,0.00042191,31]
[312471934,1705913839889,-500.0,0.00042191,31]
[312471935,1705913839914,-1340.33,0.00042191,31]
[312471936,1705913839938,-2749.12,0.00042191,31]
[312471937,1705913839962,-6849.76,0.00042191,31]
[312471938,1705913839986,-1551.82,0.00042191,31]
[312471939,1705913840012,-5781.2,0.00042191,31]
[312471940,1705913840038,-2019.03,0.00042191,31]
[312471941,1705913840064,-6915.52,0.00042191,31]
[312471942,1705913840088,-2081.27,0.00042191,31]
[312471943,1705913840114,-539.18,0.00042191,31]
[312471944,1705913840139,-1825.15,0.00042191,31]
[312471946,1705913840163,-741.59,0.00042191,31]
[312471948,1705913840188,-1295.04,0.00042191,31]
[312471950,1705913840214,-1269.8,0.00042191,31]
[312471952,1705913840239,-500.0,0.00042191,31]
[312471954,1705913840266,-1732.72,0.00042191,31]
[312471955,1705913840290,-1393.86,0.00042191,31]
[312471957,1705913840317,-1409.98,0.00042191,31]
[312471959,1705913840343,-571.3,0.00042191,31]
[312471961,1705913840370,-500.0,0.00042191,31]
[312471964,1705913840396,-567.11,0.00042191,31]
[312471966,1705913840422,-638.47,0.00042191,31]
[312471969,1705913840449,-2018.02,0.00042191,31]
[312471972,1705913840476,-2040.77,0.00042191,31]
[312471975,1705913840506,-500.0,0.00042191,31]
[312471978,1705913840534,-4772.99,0.00042191,31]
[312471979,1705913840559,-1774.13,0.00042191,31]
[312471980,1705913840586,-14310.79,0.00042191,31]
[312471981,1705913840612,-604.97,0.00042191,31]
[312471982,1705913840637,-151.36107663,0.00042232,30]
[312471983,1705913840664,-153.48719041,0.00042415,30]
[312471984,1705913840692,-500.0,0.00042465,31]
[312471985,1705913840718,-500.0,0.00042465,31]
[312471986,1705913840745,-1114.81,0.00042465,31]
[312471987,1705913840774,-500.0,0.00042465,31]
[312471988,1705913840800,-768.35,0.00042465,31]
[312471989,1705913840826,-873.08,0.00042465,31]
[312471990,1705913840862,-640.07,0.00042465,31]
[312471991,1705913840982,-529.18,0.00042465,31]
[312471992,1705913841015,-500.0,0.00042465,31]
[312471993,1705913841042,-1047.38,0.00042465,31]
[312471994,1705913841068,-500.0,0.00042465,31]
[312471995,1705913841094,-500.0,0.00042465,31]
[312471996,1705913841119,-500.0,0.00042465,31]
[312471997,1705913841145,-564.89,0.00042465,31]
[312471998,1705913841171,-1337.29,0.00042465,31]
[312471999,1705913841197,-1126.09,0.00042465,31]
[312472000,1705913841223,-500.0,0.00042465,31]
[312472001,1705913841249,-1014.23,0.00042465,31]
[312472002,1705913841277,-500.0,0.00042465,31]
[312472003,1705913841301,-2330.07,0.00042465,31]
[312472004,1705913841328,-500.0,0.00042465,31]
[312472005,1705913841355,-6634.5,0.00042465,31]
[312472006,1705913841382,-949.36,0.00042465,31]
[312472007,1705913841409,-500.0,0.00042465,31]
[312472008,1705913841435,-1340.33,0.00042465,31]
[312472009,1705913841462,-2749.12,0.00042465,31]
[312472010,1705913841488,-6849.76,0.00042465,31]
[312472011,1705913841515,-1551.82,0.00042465,31]
[312472012,1705913841542,-5781.2,0.00042465,31]
[312472013,1705913841568,-2019.03,0.00042465,31]
[312472014,1705913841594,-6915.52,0.00042465,31]
[312472015,1705913841619,-2081.27,0.00042465,31]
[312472016,1705913841649,-539.18,0.00042465,31]
[312472017,1705913841674,-1825.15,0.00042465,31]
[312472018,1705913841699,-741.59,0.00042465,31]
[312472019,1705913841724,-1295.04,0.00042465,31]
[312472020,1705913841758,-1269.8,0.00042465,31]
[312472021,1705913841792,-500.0,0.00042465,31]
[312472022,1705913841818,-1732.72,0.00042465,31]
[312472023,1705913841844,-1393.86,0.00042465,31]
[312472024,1705913841870,-1409.98,0.00042465,31]
[312472025,1705913841895,-571.3,0.00042465,31]
[312472026,1705913841921,-500.0,0.00042465,31]
[312472027,1705913841945,-567.11,0.00042465,31]
[312472028,1705913841972,-638.47,0.00042465,31]
[312472029,1705913841997,-2018.02,0.00042465,31]
[312472030,1705913842026,-2040.77,0.00042465,31]
[312472031,1705913842051,-500.0,0.00042465,31]
[312472032,1705913842076,-4772.99,0.00042465,31]
[312472033,1705913842100,-1774.13,0.00042465,31]
[312472034,1705913842126,-14310.79,0.00042465,31]
[312472035,1705913842150,-604.97,0.00042465,31]
[312472036,1705913842174,-151.36107663,0.00042546,30]
[312472037,1705913842197,-153.48719041,0.00042564,30]
[312472038,1705913842220,-153.48719047,0.00042567,30]
[312472039,1705913842243,-151.36107672,0.00042646,30]
[312472040,1705913842268,-500.0,0.00042739,31]
[312472041,1705913842291,-500.0,0.00042739,31]
[312472042,1705913842314,-1114.81,0.00042739,31]
[312472043,1705913842337,-500.0,0.00042739,31]
[312472044,1705913842361,-768.35,0.00042739,31]
[312472045,1705913842385,-873.08,0.00042739,31]
[312472046,1705913842408,-640.07,0.00042739,31]
[312472047,1705913842432,-529.18,0.00042739,31]
[312472048,1705913842455,-500.0,0.00042739,31]
[312472049,1705913842479,-1047.38,0.00042739,31]
[312472050,1705913842502,-445.90600913,0.00042739,31]
[312472051,1705913842526,-500.0,0.00042739,31]
[312472052,1705913842549,-500.0,0.00042739,31]
[312472053,1705913842573,-564.89,0.00042739,31]
[312472054,1705913842596,-1337.29,0.00042739,31]
[312472055,1705913842622,-1126.09,0.00042739,31]
[312472056,1705913842647,-500.0,0.00042739,31]
[312472057,1705913842670,-1014.23,0.00042739,31]
[312472058,1705913842694,-500.0,0.00042739,31]
[312472059,1705913842717,-2330.07,0.00042739,31]
[312472060,1705913842744,-500.0,0.00042739,31]
[312472061,1705913842771,-6634.5,0.00042739,31]
[312472062,1705913842795,-949.36,0.00042739,31]
[312472063,1705913842820,-500.0,0.00042739,31]
[312472064,1705913842845,-1340.33,0.00042739,31]
[312472065,1705913842870,-2749.12,0.00042739,31]
[312472066,1705913842894,-6849.76,0.00042739,31]
[312472067,1705913842920,-1551.82,0.00042739,31]
[312472068,1705913842946,-5781.2,0.00042739,31]
[312472069,1705913842971,-2019.03,0.00042739,31]
[312472070,1705913842995,-6915.52,0.00042739,31]
[312472071,1705913843020,-2081.27,0.00042739,31]
[312472072,1705913843044,-539.18,0.00042739,31]
[312472073,1705913843164,-1825.15,0.00042739,31]
[312472074,1705913843190,-741.59,0.00042739,31]
[312472075,1705913843213,-1295.04,0.00042739,31]
[312472076,1705913843237,-1269.8,0.00042739,31]
[312472077,1705913843261,-500.0,0.00042739,31]
[312472078,1705913843287,-1732.72,0.00042739,31]
[312472079,1705913843311,-1393.86,0.00042739,31]
[312472080,1705913843336,-1409.98,0.00042739,31]
[312472081,1705913843360,-571.3,0.00042739,31]
[312472082,1705913843384,-500.0,0.00042739,31]
[312472083,1705913843408,-567.11,0.00042739,31]
[312472084,1705913843432,-638.47,0.00042739,31]
[312472085,1705913843457,-2018.02,0.00042739,31]
[312472086,1705913843481,-2040.77,0.00042739,31]
[312472087,1705913843505,-500.0,0.00042739,31]
[312472088,1705913843531,-4772.99,0.00042739,31]
[312472089,1705913843556,-1774.13,0.00042739,31]
[312472090,1705913843579,-14310.79,0.00042739,31]
[312472091,1705913843603,-604.97,0.00042739,31]
[312472092,1705913843628,-3039.0,0.00042795,30]
[312472093,1705913843652,-163.33223346,0.00042889,30]
[312472094,1705913843676,-505.0,0.00043,120]
[312472095,1705913843700,-1000.0,0.00043,43]
[312472096,1705913843724,-1000.0,0.00043,43]
[312472097,1705913843749,-500.0,0.00043013,31]
[312472098,1705913843778,-500.0,0.00043013,31]
[312472099,1705913843803,-1114.81,0.00043013,31]
[312472100,1705913843827,-500.0,0.00043013,31]
[312472101,1705913843851,-768.35,0.00043013,31]
[312472102,1705913843875,-873.08,0.00043013,31]
[312472103,1705913843900,-640.07,0.00043013,31]
[312472104,1705913843925,-529.18,0.00043013,31]
[312472105,1705913843948,-500.0,0.00043013,31]
[312472106,1705913843972,-1047.38,0.00043013,31]
[312472107,1705913843997,-500.0,0.00043013,31]
[312472108,1705913844021,-500.0,0.00043013,31]
[312472109,1705913844045,-564.89,0.00043013,31]
[312472110,1705913844069,-1337.29,0.00043013,31]
[312472111,1705913844094,-1126.09,0.00043013,31]
[312472112,1705913844118,-500.0,0.00043013,31]
[312472113,1705913844143,-1014.23,0.00043013,31]
[312472114,1705913844167,-390.67088216,0.00043013,31]
[312472115,1705913844191,-2330.07,0.00043013,31]
[312472116,1705913844214,-500.0,0.00043013,31]
[312472117,1705913844240,-6634.5,0.00043013,31]
[312472118,1705913844264,-949.36,0.00043013,31]
[312472119,1705913844290,-500.0,0.00043013,31]
[312472120,1705913844315,-1340.33,0.00043013,31]
[312472121,1705913844338,-2749.12,0.00043013,31]
[312472122,1705913844362,-6849.76,0.00043013,31]
[312472123,1705913844386,-1551.82,0.00043013,31]
[312472124,1705913844411,-5781.2,0.00043013,31]
[312472125,1705913844434,-2019.03,0.00043013,31]
[312472126,1705913844459,-6915.52,0.00043013,31]
[312472127,1705913844484,-2081.27,0.00043013,31]
[312472128,1705913844508,-539.18,0.00043013,31]
[312472129,1705913844534,-209.56585828,0.00043013,31]
[312472130,1705913844966,-245.30368558,0.00039,30]
[312472131,1705913845089,-1615.58414172,0.00043013,31]
[312472132,1705913845113,-741.59,0.00043013,31]
[312472133,1705913845136,-1295.04,0.00043013,31]
[312472134,1705913845161,-1269.8,0.00043013,31]
[312472135,1705913845184,-500.0,0.00043013,31]
[312472136,1705913845207,-1732.72,0.00043013,31]
[312472137,1705913845230,-1393.86,0.00043013,31]
[312472138,1705913845255,-1409.98,0.00043013,31]
[312472139,1705913845279,-571.3,0.00043013,31]
[312472140,1705913845302,-500.0,0.00043013,31]
[312472141,1705913845326,-567.11,0.00043013,31]
[312472142,1705913845349,-638.47,0.00043013,31]
[312472143,1705913845373,-2018.02,0.00043013,31]
[312472144,1705913845397,-2040.77,0.00043013,31]
[312472145,1705913845421,-337.04921992,0.00043013,31]
[312472146,1705913845445,-4772.99,0.00043013,31]
[312472147,1705913845469,-1774.13,0.00043013,31]
[312472148,1705913845494,-14310.79,0.00043013,31]
[312472149,1705913845517,-604.97,0.00043013,31]
[312472150,1705913845544,-500.0,0.00043287,31]
[312472151,1705913845566,-500.0,0.00043287,31]
[312472152,1705913845589,-1114.81,0.00043287,31]
[312472153,1705913845612,-255.16590823,0.00043287,31]
[312472154,1705913845635,-768.35,0.00043287,31]
[312472155,1705913845658,-873.08,0.00043287,31]
[312472156,1705913845681,-640.07,0.00043287,31]
[312472157,1705913845705,-529.18,0.00043287,31]
[312472158,1705913845727,-341.10685563,0.00043287,31]
[312472159,1705913845755,-1047.38,0.00043287,31]
[312472160,1705913845779,-500.0,0.00043287,31]
[312472161,1705913845803,-500.0,0.00043287,31]
[312472162,1705913845829,-564.89,0.00043287,31]
[312472163,1705913845853,-1337.29,0.00043287,31]
[312472164,1705913845878,-1126.09,0.00043287,31]
[312472165,1705913845903,-500.0,0.00043287,31]
[312472166,1705913845929,-1014.23,0.00043287,31]
[312472167,1705913845953,-2330.07,0.00043287,31]
[312472168,1705913845978,-500.0,0.00043287,31]
[312472169,1705913846003,-6634.5,0.00043287,31]
[312472170,1705913846028,-949.36,0.00043287,31]
[312472171,1705913846052,-500.0,0.00043287,31]
[312472172,1705913846076,-1340.33,0.00043287,31]
[312472173,1705913846100,-2749.12,0.00043287,31]
[312472174,1705913846125,-1551.82,0.00043287,31]
[312472175,1705913846150,-5781.2,0.00043287,31]
[312472176,1705913846173,-2019.03,0.00043287,31]
[312472177,1705913846198,-6915.52,0.00043287,31]
[312472178,1705913846222,-2081.27,0.00043287,31]
[312472179,1705913846245,-539.18,0.00043287,31]
[312472180,1705913846269,-1825.15,0.00043287,31]
[312472181,1705913846292,-741.59,0.00043287,31]
[312472182,1705913846316,-1295.04,0.00043287,31]
[312472183,1705913846340,-1269.8,0.00043287,31]
[312472184,1705913846363,-500.0,0.00043287,31]
[312472185,1705913846387,-1732.72,0.00043287,31]
[312472186,1705913846410,-1393.86,0.00043287,31]
[312472187,1705913846437,-1409.98,0.00043287,31]
[312472188,1705913846461,-571.3,0.00043287,31]
[312472189,1705913846485,-373.46113135,0.00043287,31]
[312472190,1705913846508,-567.11,0.00043287,31]
[312472191,1705913846533,-638.47,0.00043287,31]
[312472192,1705913846557,-2018.02,0.00043287,31]
[312472193,1705913846580,-2040.77,0.00043287,31]
[312472194,1705913846604,-4772.99,0.00043287,31]
[312472195,1705913846628,-1774.13,0.00043287,31]
[312472196,1705913846652,-14310.79,0.00043287,31]
[312472197,1705913846675,-604.97,0.00043287,31]
[312472198,1705913846699,-172.0,0.00043496,90]
[312472199,1705913846722,-278.0,0.00043496,90]
[312472200,1705913846745,-150.57672124,0.0004352,30]
[312472201,1705913846772,-500.0,0.00043561,31]
[312472202,1705913846796,-500.0,0.00043561,31]
[312472203,1705913846819,-1114.81,0.00043561,31]
[312472204,1705913846844,-768.35,0.00043561,31]
[312472205,1705913846954,-873.08,0.00043561,31]
[312472206,1705913846980,-640.07,0.00043561,31]
[312472207,1705913847004,-529.18,0.00043561,31]
[312472208,1705913847029,-1047.38,0.00043561,31]
[312472209,1705913847054,-500.0,0.00043561,31]
[312472210,1705913847078,-500.0,0.00043561,31]
[312472211,1705913847102,-564.89,0.00043561,31]
[312472212,1705913847127,-1337.29,0.00043561,31]
[312472213,1705913847150,-1126.09,0.00043561,31]
[312472214,1705913847175,-500.0,0.00043561,31]
[312472215,1705913847200,-1014.23,0.00043561,31]
[312472216,1705913847224,-2330.07,0.00043561,31]
[312472217,1705913847248,-500.0,0.00043561,31]
[312472218,1705913847273,-6634.5,0.00043561,31]
[312472219,1705913847297,-949.36,0.00043561,31]
[312472220,1705913847321,-500.0,0.00043561,31]
[312472221,1705913847345,-1340.33,0.00043561,31]
[312472222,1705913847368,-2749.12,0.00043561,31]
[312472223,1705913847393,-1551.82,0.00043561,31]
[312472224,1705913847418,-5781.2,0.00043561,31]
[312472225,1705913847441,-2019.03,0.00043561,31]
[312472226,1705913847467,-6915.52,0.00043561,31]
[312472227,1705913847491,-2081.27,0.00043561,31]
[312472228,1705913847514,-539.18,0.00043561,31]
[312472229,1705913847540,-1825.15,0.00043561,31]
[312472230,1705913847563,-741.59,0.00043561,31]
[312472231,1705913847587,-1295.04,0.00043561,31]
[312472232,1705913847610,-1269.8,0.00043561,31]
[312472233,1705913847634,-564.68103375,0.00043561,31]
[312472234,1705913847658,-1732.72,0.00043561,31]
[312472235,1705913847682,-1393.86,0.00043561,31]
[312472236,1705913847706,-1409.98,0.00043561,31]
[312472237,1705913847729,-571.3,0.00043561,31]
[312472238,1705913847755,-567.11,0.00043561,31]
[312472239,1705913847783,-638.47,0.00043561,31]
[312472240,1705913847809,-2018.02,0.00043561,31]
[312472241,1705913847837,-2040.77,0.00043561,31]
[312472242,1705913847863,-4772.99,0.00043561,31]
[312472243,1705913847889,-1774.13,0.00043561,31]
[312472244,1705913847914,-14310.79,0.00043561,31]
[312472245,1705913847939,-604.97,0.00043561,31]
[312472246,1705913847964,-500.0,0.00043835,31]
[312472247,1705913847988,-500.0,0.00043835,31]
[312472248,1705913848013,-1114.81,0.00043835,31]
[312472249,1705913848041,-768.35,0.00043835,31]
[312472250,1705913848066,-873.08,0.00043835,31]
[312472251,1705913848091,-640.07,0.00043835,31]
[312472252,1705913848116,-529.18,0.00043835,31]
[312472253,1705913848141,-1047.38,0.00043835,31]
[312472254,1705913848165,-500.0,0.00043835,31]
[312472255,1705913848189,-500.0,0.00043835,31]
[312472256,1705913848213,-564.89,0.00043835,31]
[312472257,1705913848237,-1337.29,0.00043835,31]
[312472258,1705913848260,-1126.09,0.00043835,31]
[312472259,1705913848284,-500.0,0.00043835,31]
[312472260,1705913848307,-1014.23,0.00043835,31]
[312472261,1705913848330,-2330.07,0.00043835,31]
[312472262,1705913848353,-157.68630647,0.00043835,31]
[312472263,1705913848376,-6634.5,0.00043835,31]
[312472264,1705913848399,-949.36,0.00043835,31]
[312472265,1705913848422,-500.0,0.00043835,31]
[312472266,1705913848446,-1340.33,0.00043835,31]
[312472267,1705913848470,-2749.12,0.00043835,31]
[312472268,1705913848494,-1551.82,0.00043835,31]
[312472269,1705913848520,-5781.2,0.00043835,31]
[312472270,1705913848543,-2019.03,0.00043835,31]
[312472271,1705913848567,-6915.52,0.00043835,31]
[312472272,1705913848590,-2081.27,0.00043835,31]
[312472273,1705913848614,-539.18,0.00043835,31]
[312472274,1705913848638,-1825.15,0.00043835,31]
[312472275,1705913848661,-741.59,0.00043835,31]
[312472276,1705913848684,-1295.04,0.00043835,31]
[312472277,1705913848708,-1269.8,0.00043835,31]
[312472278,1705913848732,-1732.72,0.00043835,31]
[312472279,1705913848846,-1393.86,0.00043835,31]
[312472280,1705913848870,-1409.98,0.00043835,31]
[312472281,1705913848894,-571.3,0.00043835,31]
[312472282,1705913848918,-567.11,0.00043835,31]
[312472283,1705913848943,-638.47,0.00043835,31]
[312472284,1705913848967,-2018.02,0.00043835,31]
[312472285,1705913848992,-2040.77,0.00043835,31]
[312472286,1705913849016,-4772.99,0.00043835,31]
[312472287,1705913849041,-1774.13,0.00043835,31]
[312472288,1705913849065,-14310.79,0.00043835,31]
[312472289,1705913849089,-604.97,0.00043835,31]
[312472290,1705913849113,-755.25803779,0.00043987,90]
[312472291,1705913849137,-500.98133636,0.00044,30]
[312472292,1705913849161,-500.0,0.00044,120]
[312472293,1705913849184,-1200.0,0.00044,30]
[312472294,1705913849208,-51315.69796989,0.00044,30]
[312472295,1705913849231,-1000.0,0.00044,44]
[312472296,1705913849255,-360.59333445,0.00044109,31]
[312472297,1705913849278,-500.0,0.00044109,31]
[312472298,1705913849303,-1114.81,0.00044109,31]
[312472299,1705913849326,-768.35,0.00044109,31]
[312472300,1705913849350,-873.08,0.00044109,31]
[312472301,1705913849374,-640.07,0.00044109,31]
[312472302,1705913849398,-529.18,0.00044109,31]
[312472303,1705913849423,-1047.38,0.00044109,31]
[312472304,1705913849446,-500.0,0.00044109,31]
[312472305,1705913849471,-192.61295007,0.00044109,31]
[312472306,1705913849494,-564.89,0.00044109,31]
[312472307,1705913849517,-1337.29,0.00044109,31]
[312472308,1705913849542,-1126.09,0.00044109,31]
[312472309,1705913849566,-500.0,0.00044109,31]
[312472310,1705913849590,-1014.23,0.00044109,31]
[312472311,1705913849614,-2330.07,0.00044109,31]
[312472312,1705913849638,-6634.5,0.00044109,31]
[312472313,1705913849662,-949.36,0.00044109,31]
[312472314,1705913849686,-1340.33,0.00044109,31]
[312472315,1705913849709,-500.0,0.00044109,31]
[312472316,1705913849732,-2749.12,0.00044109,31]
[312472317,1705913849758,-1551.82,0.00044109,31]
[312472318,1705913849782,-5781.2,0.00044109,31]
[312472319,1705913849809,-2019.03,0.00044109,31]
[312472320,1705913849833,-6915.52,0.00044109,31]
[312472321,1705913849857,-2081.27,0.00044109,31]
[312472322,1705913849881,-539.18,0.00044109,31]
[312472323,1705913849904,-1825.15,0.00044109,31]
[312472324,1705913849928,-741.59,0.00044109,31]
[312472325,1705913849953,-1295.04,0.00044109,31]
[312472326,1705913849978,-1269.8,0.00044109,31]
[312472327,1705913850003,-1732.72,0.00044109,31]
[312472328,1705913850028,-1393.86,0.00044109,31]
[312472329,1705913850053,-1409.98,0.00044109,31]
[312472330,1705913850077,-571.3,0.00044109,31]
[312472331,1705913850101,-567.11,0.00044109,31]
[312472332,1705913850125,-638.47,0.00044109,31]
[312472333,1705913850148,-2018.02,0.00044109,31]
[312472334,1705913850172,-2040.77,0.00044109,31]
[312472335,1705913850196,-4772.99,0.00044109,31]
[312472336,1705913850219,-1774.13,0.00044109,31]
[312472337,1705913850243,-14310.79,0.00044109,31]
[312472338,1705913850266,-604.97,0.00044109,31]
[312472339,1705913850289,-150.5,0.0004417,30]
[312472340,1705913850312,-150.5,0.0004418,30]
[312472341,1705913850334,-150.5,0.0004419,30]
[312472342,1705913850357,-238.45,0.0004419,30]
[312472343,1705913850381,-500.0,0.00044383,31]
[312472344,1705913850404,-1114.81,0.00044383,31]
[312472345,1705913850428,-768.35,0.00044383,31]
[312472346,1705913850451,-873.08,0.00044383,31]
[312472347,1705913850475,-640.07,0.00044383,31]
[312472348,1705913850498,-529.18,0.00044383,31]
[312472349,1705913850522,-1047.38,0.00044383,31]
[312472350,1705913850630,-500.0,0.00044383,31]
[312472351,1705913850655,-564.89,0.00044383,31]